fUST/lending_fUST_20240902
["ID","MTS","AMOUNT","RATE_DAILY","PERIOD"]
[336922822,1725243049108,-544.96,0.00025204,2]
[336922823,1725243049119,-500.0,0.00025204,2]
[336922824,1725243049132,-501.48521272,0.00025204,2]
[336922825,1725243049141,-500.0,0.00025204,2]
[336922826,1725243049151,-500.0,0.00025204,2]
[336922827,1725243049161,-500.0,0.00025204,2]
[336922828,1725243049170,-500.0,0.00025204,2]
[336922829,1725243049179,-737.55,0.00025204,2]
[336922830,1725243049188,-500.0,0.00025204,2]
[336922831,1725243049198,-906.64,0.00025204,2]
[336922832,1725243049211,-728.01,0.00025204,2]
[336922833,1725243049220,-517.88,0.00025204,2]
[336922834,1725243049230,-485.12013036,0.00025204,2]
[336922835,1725243049239,-500.0,0.00025204,2]
[336922836,1725243049249,-500.0,0.00025204,2]
[336922837,1725243049258,-500.0,0.00025204,2]
[336922838,1725243049268,-500.73092861,0.00025204,2]
[336922839,1725243049277,-500.0,0.00025204,2]
[336922840,1725243049286,-500.0,0.00025204,2]
[336922841,1725243049296,-3398.02,0.00025204,2]
[336922842,1725243049306,-500.0,0.00025204,2]
[336922843,1725243049315,-500.0,0.00025204,2]
[336922844,1725243049325,-1161.51,0.00025204,2]
[336922845,1725243049334,-500.0,0.00025204,2]
[336922846,1725243049344,-555.25,0.00025204,2]
[336922847,1725243049353,-503.08585856,0.00025204,2]
[336922848,1725243049363,-500.0,0.00025204,2]
[336922849,1725243049372,-677.9,0.00025204,2]
[336922850,1725243049382,-500.0,0.00025204,2]
[336922851,1725243049390,-500.0,0.00025204,2]
[336922852,1725243049400,-500.0,0.00025204,2]
[336922853,1725243049414,-500.0,0.00025204,2]
[336922854,1725243049431,-500.0,0.00025204,2]
[336922855,1725243049447,-500.0,0.00025204,2]
[336922856,1725243049459,-500.0,0.00025204,2]
[336922857,1725243049474,-500.0,0.00025204,2]
[336922858,1725243049489,-596.9275468,0.00025204,2]
[336922859,1725243049504,-500.0,0.00025204,2]
[336922860,1725243049518,-500.0,0.00025204,2]
[336922861,1725243049534,-1088.93,0.00025204,2]
[336922862,1725243049548,-500.0,0.00025204,2]
[336922863,1725243049561,-1059.03,0.00025204,2]
[336922864,1725243049574,-1422.76,0.00025204,2]
[336922865,1725243049587,-1422.76,0.00025204,2]
[336922866,1725243049602,-970.32,0.00025204,2]
[336922867,1725243049615,-1422.76,0.00025204,2]
[336922868,1725243049626,-1422.76,0.00025204,2]
[336922869,1725243049639,-1422.76,0.00025204,2]
[336922870,1725243049652,-1422.77,0.00025204,2]
[336922871,1725243049665,-2054.83,0.00025204,2]
[336922872,1725243049679,-500.0,0.00025204,2]
[336922873,1725243049693,-500.0,0.00025204,2]
[336922874,1725243049708,-500.0,0.00025204,2]
[336922875,1725243049721,-500.0,0.00025204,2]
[336922876,1725243049732,-500.0,0.00025204,2]
[336922877,1725243049742,-500.0,0.00025204,2]
[336922878,1725243049754,-657.7,0.00025204,2]
[336922879,1725243049770,-1435.08,0.00025204,2]
[336922880,1725243049783,-1003.74,0.00025204,2]
[336922881,1725243049795,-500.0,0.00025204,2]
[336922882,1725243049807,-500.0,0.00025204,2]
[336922883,1725243049820,-976.35,0.00025204,2]
[336922884,1725243049832,-654.95,0.00025204,2]
[336922885,1725243049843,-654.95,0.00025204,2]
[336922886,1725243049854,-654.95,0.00025204,2]
[336922887,1725243049866,-654.95,0.00025204,2]
[336922888,1725243049878,-500.0,0.00025204,2]
[336922889,1725243049890,-1652.96,0.00025204,2]
[336922890,1725243049902,-784.63,0.00025204,2]
[336922891,1725243049914,-1212.38,0.00025204,2]
[336922892,1725243049927,-500.0,0.00025205,2]
[336922893,1725243049939,-512.84042606,0.00025205,2]
[336922894,1725243049950,-586.14964997,0.00025205,2]
[336922895,1725243049961,-500.0,0.00025205,2]
[336922896,1725243049973,-502.27604107,0.00025205,2]
[336922897,1725243049984,-500.0,0.00025205,2]
[336922898,1725243049996,-292.39798448,0.00025205,2]
[336922899,1725243050007,-497.44548974,0.00025205,2]
[336922900,1725243050018,-500.0,0.00025205,2]
[336922901,1725243050030,-500.0,0.00025205,2]
[336922902,1725243050041,-500.0,0.00025205,2]
[336922903,1725243050053,-500.0,0.00025205,2]
[336922904,1725243050065,-500.0,0.00025205,2]
[336922905,1725243050077,-500.0,0.00025205,2]
[336922906,1725243050088,-500.0,0.00025205,2]
[336922907,1725243050100,-500.0,0.00025205,2]
[336922908,1725243050111,-500.0,0.00025205,2]
[336922909,1725243050126,-500.0,0.00025205,2]
[336922910,1725243050137,-500.0,0.00025205,2]
[336922911,1725243050149,-286.80729616,0.00025205,2]
[336922912,1725243050161,-508.0090939,0.00025205,2]
[336922913,1725243050174,-500.0,0.00025205,2]
[336922914,1725243050186,-334.16688174,0.00025205,2]
[336922915,1725243050197,-502.95579537,0.00025205,2]
[336922916,1725243050210,-500.0,0.00025205,2]
[336922917,1725243050222,-500.0,0.00025205,2]
[336922918,1725243050233,-500.0,0.00025205,2]
[336922919,1725243050245,-500.0,0.00025205,2]
[336922920,1725243050258,-500.0,0.00025205,2]
[336922921,1725243050269,-540.93524496,0.00025205,2]
[336922922,1725243050281,-500.0,0.00025205,2]
[336922923,1725243050293,-500.0,0.00025205,2]
[336922924,1725243050304,-500.0,0.00025205,2]
[336922925,1725243050316,-500.0,0.00025205,2]
[336922926,1725243050327,-500.0,0.00025205,2]
[336922927,1725243050340,-500.0,0.00025205,2]
[336922928,1725243050352,-500.0,0.00025205,2]
[336922929,1725243050363,-500.0,0.00025205,2]
[336922930,1725243050375,-500.0,0.00025205,2]
[336922931,1725243050387,-500.0,0.00025205,2]
[336922932,1725243050399,-159.62148588,0.00025205,2]
[336922933,1725243050411,-575.34,0.00025205,2]
[336922934,1725243050422,-500.0,0.00025205,2]
[336922935,1725243050434,-500.0,0.00025205,2]
[336922936,1725243050446,-500.0,0.00025205,2]
[336922937,1725243050458,-500.0,0.00025205,2]
[336922938,1725243050471,-500.0,0.00025205,2]
[336922939,1725243050482,-500.0,0.00025205,2]
[336922940,1725243050494,-784.3,0.00025205,2]
[336922941,1725243050507,-497.48396661,0.00025205,2]
[336922942,1725243050518,-500.0,0.00025205,2]
[336922943,1725243050529,-504.39982677,0.00025205,2]
[336922944,1725243050538,-500.0,0.00025205,2]
[336922945,1725243050547,-500.0,0.00025205,2]
[336922946,1725243050557,-500.0,0.00025205,2]
[336922947,1725243050567,-500.0,0.00025205,2]
[336922948,1725243050576,-674.03,0.00025205,2]
[336922949,1725243050586,-500.0,0.00025205,2]
[336922950,1725243050595,-500.0,0.00025205,2]
[336922951,1725243050604,-500.0,0.00025205,2]
[336922952,1725243050614,-507.08424322,0.00025205,2]
[336922953,1725243050623,-500.0,0.00025205,2]
[336922954,1725243050632,-500.0,0.00025205,2]
[336922955,1725243050642,-500.0,0.00025205,2]
[336922956,1725243050653,-500.0,0.00025205,2]
[336922957,1725243050662,-500.0,0.00025205,2]
[336922958,1725243050672,-390.63428578,0.00025205,2]
[336922959,1725243050681,-500.0,0.00025205,2]
[336922960,1725243050690,-500.0,0.00025205,2]
[336922961,1725243050699,-500.0,0.00025205,2]
[336922962,1725243050709,-500.0,0.00025205,2]
[336922963,1725243050718,-500.0,0.00025205,2]
[336922964,1725243050727,-500.0,0.00025205,2]
[336922965,1725243050736,-500.0,0.00025205,2]
[336922966,1725243050746,-500.0,0.00025205,2]
[336922967,1725243050755,-500.0,0.00025205,2]
[336922968,1725243050979,-500.0,0.00025205,2]
[336922969,1725243050995,-505.7113583,0.00025205,2]
[336922970,1725243051006,-1146.2,0.00025205,2]
[336922971,1725243051016,-500.0,0.00025205,2]
[336922972,1725243051026,-500.0,0.00025205,2]
[336922973,1725243051035,-500.0,0.00025205,2]
[336922974,1725243051044,-500.0,0.00025205,2]
[336922975,1725243051053,-500.0,0.00025205,2]
[336922976,1725243051063,-500.0,0.00025205,2]
[336922977,1725243051072,-500.0,0.00025205,2]
[336922978,1725243051082,-500.0,0.00025205,2]
[336922979,1725243051092,-500.0,0.00025205,2]
[336922980,1725243051101,-500.0,0.00025205,2]
[336922981,1725243051110,-500.0,0.00025205,2]
[336922982,1725243051132,-500.0,0.00025205,2]
[336922983,1725243051142,-748.64,0.00025205,2]
[336922984,1725243051152,-673.34,0.00025205,2]
[336922985,1725243051162,-500.0,0.00025205,2]
[336922986,1725243051171,-500.0,0.00025205,2]
[336922987,1725243051183,-500.0,0.00025205,2]
[336922988,1725243051194,-500.0,0.00025205,2]
[336922989,1725243051205,-500.0,0.00025205,2]
[336922990,1725243051215,-500.0,0.00025205,2]
[336922991,1725243051224,-500.0,0.00025205,2]
[336922992,1725243051234,-500.0,0.00025205,2]
[336922993,1725243051243,-513.57387618,0.00025205,2]
[336922994,1725243051253,-500.0,0.00025205,2]
[336922995,1725243051264,-500.0,0.00025205,2]
[336922996,1725243051273,-500.0,0.00025205,2]
[336922997,1725243051283,-500.0,0.00025205,2]
[336922998,1725243051292,-513.83999368,0.00025205,2]
[336922999,1725243051301,-723.83,0.00025205,2]
[336923000,1725243051311,-506.24544424,0.00025205,2]
[336923001,1725243051320,-500.0,0.00025205,2]
[336923002,1725243051329,-500.0,0.00025205,2]
[336923003,1725243051338,-586.90745776,0.00025205,2]
[336923004,1725243051348,-627.66,0.00025205,2]
[336923005,1725243051357,-500.0,0.00025205,2]
[336923006,1725243051369,-833.08,0.00025205,2]
[336923007,1725243051378,-500.0,0.00025205,2]
[336923008,1725243051387,-500.0,0.00025205,2]
[336923009,1725243051397,-500.0,0.00025205,2]
[336923010,1725243051406,-500.0,0.00025205,2]
[336923011,1725243051416,-500.0,0.00025205,2]
[336923012,1725243051425,-627.41,0.00025205,2]
[336923013,1725243051434,-500.0,0.00025205,2]
[336923014,1725243051443,-595.2,0.00025205,2]
[336923015,1725243051453,-500.0,0.00025205,2]
[336923016,1725243051462,-500.0,0.00025205,2]
[336923017,1725243051471,-500.0,0.00025205,2]
[336923018,1725243051482,-500.0,0.00025205,2]
[336923019,1725243051491,-500.0,0.00025205,2]
[336923020,1725243051500,-504.30642844,0.00025205,2]
[336923021,1725243051509,-500.0,0.00025205,2]
[336923022,1725243051518,-500.0,0.00025205,2]
[336923023,1725243051528,-303.8127338,0.00025205,2]
[336923024,1725243051537,-500.0,0.00025205,2]
[336923025,1725243051546,-500.0,0.00025205,2]
[336923026,1725243051556,-596.01,0.00025205,2]
[336923027,1725243051566,-503.63168444,0.00025205,2]
[336923028,1725243051575,-566.5,0.00025205,2]
[336923029,1725243051584,-500.0,0.00025205,2]
[336923030,1725243051593,-273.20464074,0.00025205,2]
[336923031,1725243051602,-500.0,0.00025205,2]
[336923032,1725243051612,-500.0,0.00025205,2]
[336923033,1725243051625,-500.0,0.00025205,2]
[336923034,1725243051634,-857.63,0.00025205,2]
[336923035,1725243051644,-500.0,0.00025205,2]
[336923036,1725243051653,-500.0,0.00025205,2]
[336923037,1725243051665,-500.0,0.00025205,2]
[336923038,1725243051674,-500.0,0.00025205,2]
[336923039,1725243051684,-500.0,0.00025205,2]
[336923040,1725243051693,-500.0,0.00025205,2]
[336923041,1725243051703,-500.0,0.00025205,2]
[336923042,1725243051712,-426.55777024,0.00025205,2]
[336923043,1725243051721,-357.49324299,0.00025205,2]
[336923044,1725243051732,-585.13404961,0.00025205,2]
[336923045,1725243051744,-500.0,0.00025205,2]
[336923046,1725243051753,-504.68,0.00025205,2]
[336923047,1725243051762,-500.0,0.00025205,2]
[336923048,1725243051772,-500.0,0.00025205,2]
[336923049,1725243051781,-500.0,0.00025205,2]
[336923050,1725243051790,-500.0,0.00025205,2]
[336923051,1725243051799,-712.27,0.00025205,2]
[336923052,1725243051808,-1156.69,0.00025205,2]
[336923053,1725243051818,-500.0,0.00025205,2]
[336923054,1725243051827,-500.0,0.00025205,2]
[336923055,1725243051836,-500.0,0.00025205,2]
[336923056,1725243051845,-500.0,0.00025205,2]
[336923057,1725243051855,-500.0,0.00025205,2]
[336923058,1725243051865,-500.0,0.00025205,2]
[336923059,1725243051874,-198.60718899,0.00025205,2]
[336923060,1725243051883,-288.97975478,0.00025205,2]
[336923061,1725243051892,-1446.63,0.00025205,2]
[336923062,1725243051902,-500.0,0.00025205,2]
[336923063,1725243051911,-500.0,0.00025205,2]
[336923064,1725243051920,-500.0,0.00025205,2]
[336923065,1725243051930,-495.34,0.00025205,2]
[336923066,1725243051939,-2052.41,0.00025205,2]
[336923067,1725243051949,-500.0,0.00025205,2]
[336923068,1725243051958,-500.0,0.00025205,2]
[336923069,1725243051967,-500.0,0.00025205,2]
[336923070,1725243051977,-806.64,0.00025205,2]
[336923071,1725243051986,-500.0,0.00025205,2]
[336923072,1725243051995,-508.84601125,0.00025205,2]
[336923073,1725243052004,-1113.72,0.00025205,2]
[336923074,1725243052013,-500.0,0.00025205,2]
[336923075,1725243052022,-500.0,0.00025205,2]
[336923076,1725243052031,-500.0,0.00025205,2]
[336923077,1725243052040,-2048.39,0.00025205,2]
[336923078,1725243052050,-500.0,0.00025205,2]
[336923079,1725243052059,-500.0,0.00025205,2]
[336923080,1725243052069,-500.0,0.00025205,2]
[336923081,1725243052078,-500.0,0.00025205,2]
[336923082,1725243052088,-500.0,0.00025205,2]
[336923083,1725243052098,-500.0,0.00025205,2]
[336923084,1725243052107,-2469.08,0.00025205,2]
[336923085,1725243052117,-500.0,0.00025205,2]
[336923086,1725243052129,-3036.16,0.00025205,2]
[336923087,1725243052138,-500.0,0.00025205,2]
[336923088,1725243052147,-936.48,0.00025205,2]
[336923089,1725243052157,-1180.06,0.00025205,2]
[336923090,1725243052166,-813.81,0.00025205,2]
[336923091,1725243052177,-500.0,0.00025205,2]
[336923092,1725243052186,-500.0,0.00025205,2]
[336923093,1725243052195,-649.54,0.00025205,2]
[336923094,1725243052206,-510.33048496,0.00025205,2]
[336923095,1725243052216,-13431.53,0.00025205,2]
[336923096,1725243052226,-500.0,0.00025205,2]
[336923097,1725243052235,-503.21,0.00025205,2]
[336923098,1725243052244,-500.0,0.00025205,2]
[336923099,1725243052254,-500.0,0.00025205,2]
[336923100,1725243052263,-578.63,0.00025205,2]
[336923101,1725243052272,-590.6,0.00025205,2]
[336923102,1725243052281,-2907.46,0.00025205,2]
[336923103,1725243052291,-500.0,0.00025205,2]
[336923104,1725243052300,-668.06,0.00025205,2]
[336923105,1725243052309,-269.24649168,0.00025205,2]
[336923106,1725243052319,-500.0,0.00025205,2]
[336923107,1725243052328,-500.0,0.00025205,2]
[336923108,1725243052337,-500.0,0.00025205,2]
[336923109,1725243052350,-637.36,0.00025205,2]
[336923110,1725243052361,-500.0,0.00025205,2]
[336923111,1725243052370,-1233.41,0.00025205,2]
[336923112,1725243052380,-500.0,0.00025205,2]
[336923113,1725243052389,-500.0,0.00025205,2]
[336923114,1725243052398,-500.0,0.00025205,2]
[336923115,1725243052408,-500.0,0.00025205,2]
[336923116,1725243052418,-1147.17,0.00025205,2]
[336923117,1725243052428,-303.5198211,0.00025205,2]
[336923118,1725243052438,-1549.93,0.00025205,2]
[336923119,1725243052447,-530.59091496,0.00025205,2]
[336923120,1725243052456,-1457.23,0.00025205,2]
[336923121,1725243052465,-502.42464154,0.00025205,2]
[336923122,1725243052474,-1528.89,0.00025205,2]
[336923123,1725243052485,-2108.71,0.00025205,2]
[336923124,1725243052494,-1754.81,0.00025205,2]
[336923125,1725243052504,-2174.45,0.00025205,2]
[336923126,1725243052513,-1749.0,0.00025205,2]
[336923127,1725243052523,-366.88312887,0.00025205,2]
[336923128,1725243052533,-556.81,0.00025205,2]
[336923129,1725243052545,-500.0,0.00025205,2]
[336923130,1725243052556,-2584.11,0.00025205,2]
[336923131,1725243052566,-500.0,0.00025205,2]
[336923132,1725243052576,-505.28814591,0.00025205,2]
[336923133,1725243052585,-500.0,0.00025205,2]
[336923134,1725243052595,-708.11,0.00025205,2]
[336923135,1725243052606,-1148.11,0.00025205,2]
[336923136,1725243052616,-500.0,0.00025205,2]
[336923137,1725243052626,-5079.4,0.00025205,2]
[336923138,1725243052636,-628.72,0.00025205,2]
[336923139,1725243052645,-661.39,0.00025205,2]
[336923140,1725243052656,-1517.05,0.00025205,2]
[336923141,1725243052666,-481.14027326,0.00025205,2]
[336923142,1725243052675,-667.84,0.00025205,2]
[336923143,1725243052684,-1051.32,0.00025205,2]
[336923144,1725243052696,-1639.12,0.00025205,2]
[336923145,1725243052705,-500.0,0.00025205,2]
[336923146,1725243052715,-500.0,0.00025205,2]
[336923147,1725243052724,-1424.27,0.00025205,2]
[336923148,1725243052734,-1556.89,0.00025205,2]
[336923149,1725243052743,-1124.52,0.00025205,2]
[336923150,1725243052753,-500.0,0.00025205,2]
[336923151,1725243052763,-596.62,0.00025205,2]
[336923152,1725243052772,-678.74,0.00025205,2]
[336923153,1725243052781,-1684.36,0.00025205,2]
[336923154,1725243052790,-500.0,0.00025205,2]
[336923155,1725243052800,-326.14200045,0.00025205,2]
[336923156,1725243052810,-500.0,0.00025205,2]
[336923157,1725243052819,-500.0,0.00025205,2]
[336923158,1725243052830,-946.38,0.00025205,2]
[336923159,1725243052840,-500.0,0.00025205,2]
[336923160,1725243052850,-500.0,0.00025205,2]
[336923161,1725243052859,-500.0,0.00025205,2]
[336923162,1725243052871,-500.0,0.00025205,2]
[336923163,1725243052881,-500.0,0.00025205,2]
[336923164,1725243052890,-500.0,0.00025205,2]
[336923165,1725243052899,-573.46,0.00025205,2]
[336923166,1725243052908,-665.58,0.00025205,2]
[336923167,1725243052918,-500.0,0.00025205,2]
[336923168,1725243052927,-1757.96,0.00025205,2]
[336923169,1725243052938,-645.89,0.00025205,2]
[336923170,1725243052948,-500.0,0.00025205,2]
[336923171,1725243052958,-500.0,0.00025205,2]
[336923172,1725243052967,-787.46,0.00025205,2]
[336923173,1725243052976,-8090.14,0.00025205,2]
[336923174,1725243052985,-1366.75,0.00025205,2]
[336923175,1725243052994,-3682.53,0.00025205,2]
[336923176,1725243053003,-1632.12,0.00025205,2]
[336923177,1725243053012,-559.34218101,0.00025205,2]
[336923178,1725243053023,-1362.3,0.00025205,2]
[336923179,1725243053032,-509.72,0.00025205,2]
[336923180,1725243053041,-500.0,0.00025205,2]
[336923181,1725243053050,-500.0,0.00025205,2]
[336923182,1725243053059,-1427.89,0.00025205,2]
[336923183,1725243053068,-1376.1,0.00025205,2]
[336923184,1725243053078,-500.0,0.00025205,2]
[336923185,1725243053087,-500.0,0.00025205,2]
[336923186,1725243053096,-525.0,0.00025205,2]
[336923187,1725243053105,-1892.51,0.00025205,2]
[336923188,1725243053114,-500.0,0.00025205,2]
[336923189,1725243053125,-205.2154164,0.00025205,2]
[336923190,1725243053136,-1320.34,0.00025205,2]
[336923191,1725243053146,-570.98,0.00025205,2]
[336923192,1725243053155,-500.0,0.00025205,2]
[336923193,1725243053165,-2145.76,0.00025205,2]
[336923194,1725243053175,-503.24,0.00025205,2]
[336923195,1725243053184,-1541.42,0.00025205,2]
[336923196,1725243053193,-3190.79,0.00025205,2]
[336923197,1725243053202,-1056.26,0.00025205,2]
[336923198,1725243053211,-1394.41,0.00025205,2]
[336923199,1725243053221,-500.0,0.00025205,2]
[336923200,1725243053230,-3000.0,0.0002521,2]
[336923201,1725243053239,-3000.0,0.0002522,2]
[336923202,1725243053248,-676.71261535,0.00025221,2]
[336923203,1725243053257,-3000.0,0.0002523,2]
[336923204,1725243053267,-3000.0,0.0002524,2]
[336923205,1725243053276,-3000.0,0.0002525,2]
[336923206,1725243053285,-3000.0,0.0002526,2]
[336923207,1725243053295,-3000.0,0.0002527,2]
[336923208,1725243053304,-3832.529754,0.0002528,2]
[336923209,1725243053314,-3492.30967665,0.00025286,3]
[336923210,1725243053324,-198.856101,0.00025296,2]
[336923211,1725243053333,-484.598147,0.00025296,2]
[336923212,1725243053343,-190.360737,0.00025296,2]
[336923213,1725243053352,-467.310028,0.00025296,2]
[336923214,1725243053364,-194.445948,0.00025296,2]
[336923215,1725243053373,-176.557799,0.00025296,2]
[336923216,1725243053383,-194.445948,0.00025296,2]
[336923217,1725243053393,-176.557797,0.00025296,2]
[336923218,1725243053402,-210.809742,0.00025296,2]
[336923219,1725243053411,-252.97169,0.00025296,2]
[336923220,1725243053421,-313.610221,0.00025296,2]
[336923221,1725243053430,-2060.92,0.000253,7]
[336923222,1725243053439,-150.114,0.00025318,2]
[336923223,1725243053449,-150.434,0.00025318,2]
[336923224,1725243053458,-150.0,0.00025428,2]
[336923225,1725243053467,-150.109,0.00025428,2]
[336923226,1725243053477,-6984.6193533,0.00025469,3]
[336923227,1725243053487,-150.0,0.0002547,2]
[336923228,1725243053497,-523.0,0.0002547,2]
[336923229,1725243053506,-654.95,0.00025477,2]
[336923230,1725243053515,-500.0,0.00025478,2]
[336923231,1725243053524,-500.0,0.00025478,2]
[336923232,1725243053533,-500.0,0.00025478,2]
[336923233,1725243053542,-500.0,0.00025478,2]
[336923234,1725243053552,-500.0,0.00025478,2]
[336923235,1725243053561,-500.0,0.00025478,2]
[336923236,1725243053570,-503.86842878,0.00025478,2]
[336923237,1725243053579,-737.55,0.00025478,2]
[336923238,1725243053591,-500.0,0.00025478,2]
[336923239,1725243053601,-906.64,0.00025478,2]
[336923240,1725243053612,-728.01,0.00025478,2]
[336923241,1725243053624,-517.88,0.00025478,2]
[336923242,1725243053634,-500.0,0.00025478,2]
[336923243,1725243053644,-500.0,0.00025478,2]
[336923244,1725243053656,-500.0,0.00025478,2]
[336923245,1725243053665,-500.0,0.00025478,2]
[336923246,1725243053675,-3398.02,0.00025478,2]
[336923247,1725243053684,-500.0,0.00025478,2]
[336923248,1725243053695,-500.0,0.00025478,2]
[336923249,1725243053704,-1161.51,0.00025478,2]
[336923250,1725243053714,-500.0,0.00025478,2]
[336923251,1725243053724,-555.25,0.00025478,2]
[336923252,1725243053734,-503.13671639,0.00025478,2]
[336923253,1725243053746,-677.9,0.00025478,2]
[336923254,1725243053755,-500.0,0.00025478,2]
[336923255,1725243053767,-500.0,0.00025478,2]
[336923256,1725243053776,-500.0,0.00025478,2]
[336923257,1725243053786,-500.0,0.00025478,2]
[336923258,1725243053795,-500.0,0.00025478,2]
[336923259,1725243053804,-500.0,0.00025478,2]
[336923260,1725243053814,-501.71763306,0.00025478,2]
[336923261,1725243053823,-500.0,0.00025478,2]
[336923262,1725243053832,-500.0,0.00025478,2]
[336923263,1725243053841,-500.0,0.00025478,2]
[336923264,1725243053851,-1088.93,0.00025478,2]
[336923265,1725243053861,-500.0,0.00025478,2]
[336923266,1725243053871,-1059.03,0.00025478,2]
[336923267,1725243053881,-970.32,0.00025478,2]
[336923268,1725243053890,-2054.83,0.00025478,2]
[336923269,1725243053899,-500.0,0.00025478,2]
[336923270,1725243053909,-500.0,0.00025478,2]
[336923271,1725243053918,-500.0,0.00025478,2]
[336923272,1725243053927,-500.0,0.00025478,2]
[336923273,1725243053936,-500.0,0.00025478,2]
[336923274,1725243053946,-500.0,0.00025478,2]
[336923275,1725243053955,-657.7,0.00025478,2]
[336923276,1725243053966,-1435.08,0.00025478,2]
[336923277,1725243053975,-1003.74,0.00025478,2]
[336923278,1725243053984,-402.5374694,0.00025478,2]
[336923279,1725243053993,-500.0,0.00025478,2]
[336923280,1725243054003,-976.35,0.00025478,2]
[336923281,1725243054013,-654.95,0.00025478,2]
[336923282,1725243054022,-654.95,0.00025478,2]
[336923283,1725243054031,-654.95,0.00025478,2]
[336923284,1725243054041,-654.95,0.00025478,2]
[336923285,1725243054051,-654.95,0.00025478,2]
[336923286,1725243054060,-655.01,0.00025478,2]
[336923287,1725243054069,-500.0,0.00025478,2]
[336923288,1725243054079,-1652.96,0.00025478,2]
[336923289,1725243054088,-784.63,0.00025478,2]
[336923290,1725243054097,-1212.38,0.00025478,2]
[336923291,1725243054107,-500.0,0.00025479,2]
[336923292,1725243054117,-446.3662837,0.00025479,2]
[336923293,1725243054130,-500.0,0.00025479,2]
[336923294,1725243054139,-500.0,0.00025479,2]
[336923295,1725243054150,-500.0,0.00025479,2]
[336923296,1725243054297,-500.0,0.00025479,2]
[336923297,1725243054307,-500.0,0.00025479,2]
[336923298,1725243054317,-500.0,0.00025479,2]
[336923299,1725243054327,-500.0,0.00025479,2]
[336923300,1725243054336,-500.0,0.00025479,2]
[336923301,1725243054346,-500.0,0.00025479,2]
[336923302,1725243054355,-500.0,0.00025479,2]
[336923303,1725243054366,-500.0,0.00025479,2]
[336923304,1725243054376,-500.0,0.00025479,2]
[336923305,1725243054385,-500.0,0.00025479,2]
[336923306,1725243054395,-500.0,0.00025479,2]
[336923307,1725243054404,-500.0,0.00025479,2]
[336923308,1725243054414,-511.19595774,0.00025479,2]
[336923309,1725243054423,-500.0,0.00025479,2]
[336923310,1725243054432,-456.13021253,0.00025479,2]
[336923311,1725243054442,-500.0,0.00025479,2]
[336923312,1725243054451,-585.03900597,0.00025479,2]
[336923313,1725243054461,-575.34,0.00025479,2]
[336923314,1725243054470,-496.03349054,0.00025479,2]
[336923315,1725243054480,-500.0,0.00025479,2]
[336923316,1725243054491,-500.0,0.00025479,2]
[336923317,1725243054501,-500.0,0.00025479,2]
[336923318,1725243054510,-500.0,0.00025479,2]
[336923319,1725243054519,-784.3,0.00025479,2]
[336923320,1725243054529,-500.0,0.00025479,2]
[336923321,1725243054538,-309.44318553,0.00025479,2]